lending/lending_fUSD_20250121
["ID","MTS","AMOUNT","RATE_DAILY","PERIOD"]
[349847986,1737459064151,-356.42,0.00021369,2]
[349847987,1737459064160,-500.0,0.00021369,2]
[349847988,1737459064171,-253.3571953,0.00021369,2]
[349847989,1737459064180,-500.0,0.00021369,2]
[349847990,1737459064190,-1310.02,0.00021369,2]
[349847991,1737459064199,-500.0,0.00021369,2]
[349847992,1737459064209,-578.98,0.00021369,2]
[349847993,1737459064218,-1410.6,0.00021369,2]
[349847994,1737459064227,-732.73,0.00021369,2]
[349847995,1737459064237,-500.0,0.00021369,2]
[349847996,1737459064247,-786.26,0.00021369,2]
[349847997,1737459064256,-763.29,0.00021369,2]
[349847998,1737459064266,-2378.04,0.00021369,2]
[349847999,1737459064275,-500.0,0.00021369,2]
[349848000,1737459064285,-500.0,0.00021369,2]
[349848001,1737459064295,-2033.22,0.00021369,2]
[349848002,1737459064304,-500.0,0.00021369,2]
[349848003,1737459064313,-804.36,0.00021369,2]
[349848004,1737459064323,-1243.05,0.00021369,2]
[349848005,1737459064332,-500.0,0.00021369,2]
[349848006,1737459064342,-500.0,0.00021369,2]
[349848007,1737459064352,-1212.13,0.00021369,2]
[349848008,1737459064362,-801.03,0.00021369,2]
[349848009,1737459064371,-1422.08,0.00021369,2]
[349848010,1737459064388,-801.79,0.00021369,2]
[349848011,1737459064398,-500.0,0.00021369,2]
[349848012,1737459064408,-500.0,0.00021369,2]
[349848013,1737459064418,-776.86,0.00021369,2]
[349848014,1737459064427,-500.0,0.00021369,2]
[349848015,1737459064437,-500.0,0.00021369,2]
[349848016,1737459064448,-500.0,0.00021369,2]
[349848017,1737459064459,-945.19,0.00021369,2]
[349848018,1737459064470,-536.81,0.00021369,2]
[349848019,1737459064480,-1679.81,0.00021369,2]
[349848020,1737459064491,-500.0,0.00021369,2]
[349848021,1737459064501,-1114.25,0.00021369,2]
[349848022,1737459064511,-500.0,0.00021369,2]
[349848023,1737459064522,-500.0,0.00021369,2]
[349848024,1737459064533,-1635.45,0.00021369,2]
[349848025,1737459064544,-500.0,0.00021369,2]
[349848026,1737459064554,-300.0,0.00021369,2]
[349848027,1737459064568,-1109.47,0.00021369,2]
[349848028,1737459064579,-534.9,0.00021369,2]
[349848029,1737459064589,-500.0,0.00021369,2]
[349848030,1737459064599,-1760.33,0.00021369,2]
[349848031,1737459064610,-1889.17,0.00021369,2]
[349848032,1737459064620,-500.0,0.00021369,2]
[349848033,1737459064634,-500.0,0.00021369,2]
[349848034,1737459064645,-802.73,0.00021369,2]
[349848035,1737459064656,-571.56,0.00021369,2]
[349848036,1737459064667,-500.0,0.00021369,2]
[349848037,1737459064677,-1328.05,0.00021369,2]
[349848038,1737459064687,-1490.59,0.00021369,2]
[349848039,1737459064699,-622.22261785,0.00021369,2]
[349848040,1737459064708,-500.0,0.00021369,2]
[349848041,1737459064719,-909.06,0.00021369,2]
[349848042,1737459064728,-500.0,0.00021369,2]
[349848043,1737459064738,-818.71,0.00021369,2]
[349848044,1737459064748,-500.0,0.00021369,2]
[349848045,1737459064757,-2484.05,0.00021369,2]
[349848046,1737459064767,-500.0,0.00021369,2]
[349848047,1737459064776,-872.4,0.00021369,2]
[349848048,1737459064785,-500.0,0.00021369,2]
[349848049,1737459064795,-513.49,0.00021369,2]
[349848050,1737459064805,-500.0,0.00021369,2]
[349848051,1737459064815,-500.0,0.00021369,2]
[349848052,1737459064824,-2351.36,0.00021369,2]
[349848053,1737459064834,-500.0,0.00021369,2]
[349848054,1737459064843,-500.0,0.00021369,2]
[349848055,1737459064853,-500.0,0.00021369,2]
[349848056,1737459064863,-500.0,0.00021369,2]
[349848057,1737459064873,-638.32,0.00021369,2]
[349848058,1737459064886,-544.04,0.00021369,2]
[349848059,1737459064895,-500.0,0.00021369,2]
[349848060,1737459064906,-623.62,0.00021369,2]
[349848061,1737459064916,-614.22398972,0.00021369,2]
[349848062,1737459064925,-500.0,0.00021369,2]
[349848063,1737459064935,-500.0,0.00021369,2]
[349848064,1737459064944,-537.74,0.00021369,2]
[349848065,1737459064954,-500.0,0.00021369,2]
[349848066,1737459064963,-500.0,0.00021369,2]
[349848067,1737459064973,-520.18362216,0.00021369,2]
[349848068,1737459064982,-585.42,0.00021369,2]
[349848069,1737459064992,-500.0,0.00021369,2]
[349848070,1737459065001,-2128.11,0.00021369,2]
[349848071,1737459065011,-336.26996785,0.00021369,2]
[349848072,1737459065022,-500.0,0.00021369,2]
[349848073,1737459065032,-765.34,0.00021369,2]
[349848074,1737459065042,-500.0,0.00021369,2]
[349848075,1737459065051,-500.0,0.00021369,2]
[349848076,1737459065061,-500.0,0.00021369,2]
[349848077,1737459065071,-500.0,0.00021369,2]
[349848078,1737459065080,-632.05,0.00021369,2]
[349848079,1737459065089,-500.0,0.00021369,2]
[349848080,1737459065099,-500.0,0.00021369,2]
[349848081,1737459065109,-500.0,0.00021369,2]
[349848082,1737459065119,-500.0,0.00021369,2]
[349848083,1737459065131,-1427.89,0.00021369,2]
[349848084,1737459065141,-1787.2,0.00021369,2]
[349848085,1737459065150,-531.87,0.00021369,2]
[349848086,1737459065159,-610.59339231,0.00021369,2]
[349848087,1737459065169,-500.0,0.00021369,2]
[349848088,1737459065178,-200.0,0.00021381,2]
[349848089,1737459065187,-8638.43464795,0.000214,2]
[349848090,1737459065196,-1000.0,0.000214,2]
[349848091,1737459065205,-3484.07,0.00021411,7]
[349848092,1737459065215,-3484.07,0.00021411,7]
[349848093,1737459065223,-3484.07,0.00021411,7]
[349848094,1737459065233,-3484.07,0.00021411,7]
[349848095,1737459065242,-250.0,0.00021421,2]
[349848096,1737459065251,-692.12962963,0.00021452,2]
[349848097,1737459065262,-300.0,0.00021452,2]
[349848098,1737459065405,-3000.0,0.0002149,2]
[349848099,1737459065415,-450.0,0.000215,3]
[349848100,1737459065424,-1000.0,0.000215,2]
[349848101,1737459065434,-467.17,0.00021517,30]
[349848102,1737459065443,-165.86636039,0.00021534,2]
[349848103,1737459065452,-150.0,0.00021547,2]
[349848104,1737459065461,-1921.413091,0.00021556,2]
[349848105,1737459065471,-692.12962963,0.00021562,2]
[349848106,1737459065480,-194.44444445,0.00021589,2]
[349848107,1737459065489,-194.44444445,0.00021589,2]
[349848108,1737459065499,-1000.0,0.000216,2]
[349848109,1737459065508,-500.0,0.00021642,2]
[349848110,1737459065518,-1213.76,0.00021642,2]
[349848111,1737459065527,-624.28,0.00021642,2]
[349848112,1737459065537,-1357.46,0.00021642,2]
[349848113,1737459065547,-6606.09,0.00021642,2]
[349848114,1737459065561,-500.0,0.00021642,2]
[349848115,1737459065571,-500.0,0.00021642,2]
[349848116,1737459065582,-409.204484,0.00021642,2]
[349848117,1737459065592,-785.18,0.00021642,2]
[349848118,1737459065602,-724.87,0.00021642,2]
[349848119,1737459065611,-1338.48,0.00021642,2]
[349848120,1737459065621,-596.08,0.00021642,2]
[349848121,1737459065633,-1373.44,0.00021642,2]
[349848122,1737459065643,-762.52,0.00021642,2]
[349848123,1737459065654,-289.329478,0.00021642,2]
[349848124,1737459065664,-830.31,0.00021642,2]
[349848125,1737459065673,-500.0,0.00021642,2]
[349848126,1737459065683,-500.0,0.00021642,2]
[349848127,1737459065693,-2465.73,0.00021642,2]
[349848128,1737459065702,-1634.47,0.00021642,2]
[349848129,1737459065712,-910.98,0.00021642,2]
[349848130,1737459065722,-760.26,0.00021642,2]
[349848131,1737459065731,-1581.37,0.00021642,2]
[349848132,1737459065742,-1827.33,0.00021642,2]
[349848133,1737459065751,-500.0,0.00021642,2]
[349848134,1737459065760,-165.374861,0.00021642,2]
[349848135,1737459065770,-1239.55,0.00021642,2]
[349848136,1737459065779,-923.48,0.00021642,2]
[349848137,1737459065788,-2290.67,0.00021642,2]
[349848138,1737459065798,-801.08,0.00021642,2]
[349848139,1737459065807,-886.64,0.00021642,2]
[349848140,1737459065817,-677.79,0.00021642,2]
[349848141,1737459065827,-963.55,0.00021642,2]
[349848142,1737459065836,-1690.83,0.00021642,2]
[349848143,1737459065845,-1017.87,0.00021642,2]
[349848144,1737459065854,-500.0,0.00021643,2]
[349848145,1737459065863,-915.83,0.00021643,2]
[349848146,1737459065872,-531.82,0.00021643,2]
[349848147,1737459065883,-500.0,0.00021643,2]
[349848148,1737459065893,-500.0,0.00021643,2]
[349848149,1737459065903,-500.0,0.00021643,2]
[349848150,1737459065911,-500.0,0.00021643,2]
[349848151,1737459065921,-588.98,0.00021643,2]
[349848152,1737459065931,-504.69,0.00021643,2]
[349848153,1737459065939,-500.0,0.00021643,2]
[349848154,1737459065949,-996.46,0.00021643,2]
[349848155,1737459065958,-500.0,0.00021643,2]
[349848156,1737459065967,-569.02,0.00021643,2]
[349848157,1737459065976,-504.63,0.00021643,2]
[349848158,1737459065985,-500.0,0.00021643,2]
[349848159,1737459065995,-561.3,0.00021643,2]
[349848160,1737459066003,-500.0,0.00021643,2]
[349848161,1737459066012,-500.0,0.00021643,2]
[349848162,1737459066021,-500.0,0.00021643,2]
[349848163,1737459066031,-500.0,0.00021643,2]
[349848164,1737459066040,-500.0,0.00021643,2]
[349848165,1737459066050,-500.0,0.00021643,2]
[349848166,1737459066059,-500.0,0.00021643,2]
[349848167,1737459066068,-500.0,0.00021643,2]
[349848168,1737459066077,-500.0,0.00021643,2]
[349848169,1737459066087,-500.0,0.00021643,2]
[349848170,1737459066096,-500.0,0.00021643,2]
[349848171,1737459066105,-500.0,0.00021643,2]
[349848172,1737459066115,-500.0,0.00021643,2]
[349848173,1737459066124,-500.0,0.00021643,2]
[349848174,1737459066135,-500.0,0.00021643,2]
[349848175,1737459066144,-500.0,0.00021643,2]
[349848176,1737459066153,-500.0,0.00021643,2]
[349848177,1737459066162,-500.0,0.00021643,2]
[349848178,1737459066172,-500.0,0.00021643,2]
[349848179,1737459066181,-500.0,0.00021643,2]
[349848180,1737459066190,-500.0,0.00021643,2]
[349848181,1737459066199,-2379.98,0.00021643,2]
[349848182,1737459066208,-500.0,0.00021643,2]
[349848183,1737459066217,-433.21940147,0.00021643,2]
[349848184,1737459066227,-500.0,0.00021643,2]
[349848185,1737459066236,-1310.02,0.00021643,2]
[349848186,1737459066245,-500.0,0.00021643,2]
[349848187,1737459066255,-578.98,0.00021643,2]
[349848188,1737459066263,-1410.6,0.00021643,2]
[349848189,1737459066272,-732.73,0.00021643,2]
[349848190,1737459066282,-154.09,0.00021643,2]
[349848191,1737459066291,-786.26,0.00021643,2]
[349848192,1737459066300,-763.29,0.00021643,2]
[349848193,1737459066309,-2378.04,0.00021643,2]
[349848194,1737459066318,-500.0,0.00021643,2]
[349848195,1737459066327,-500.0,0.00021643,2]
[349848196,1737459066336,-2033.22,0.00021643,2]
[349848197,1737459066345,-500.0,0.00021643,2]
[349848198,1737459066355,-804.36,0.00021643,2]
[349848199,1737459066364,-1243.05,0.00021643,2]
[349848200,1737459066373,-500.0,0.00021643,2]
[349848201,1737459066386,-266.1071027,0.00021643,2]
[349848202,1737459066395,-1212.13,0.00021643,2]
[349848203,1737459066404,-801.03,0.00021643,2]
[349848204,1737459066413,-1422.08,0.00021643,2]
[349848205,1737459066423,-801.79,0.00021643,2]
[349848206,1737459066433,-500.0,0.00021643,2]
[349848207,1737459066443,-500.0,0.00021643,2]
[349848208,1737459066453,-776.86,0.00021643,2]
[349848209,1737459066465,-500.0,0.00021643,2]
[349848210,1737459066474,-500.0,0.00021643,2]
[349848211,1737459066484,-500.0,0.00021643,2]
[349848212,1737459066494,-945.19,0.00021643,2]
[349848213,1737459066503,-536.81,0.00021643,2]
[349848214,1737459066513,-1679.81,0.00021643,2]
[349848215,1737459066522,-500.0,0.00021643,2]
[349848216,1737459066533,-1114.25,0.00021643,2]
[349848217,1737459066543,-500.0,0.00021643,2]
[349848218,1737459066552,-500.0,0.00021643,2]
[349848219,1737459066563,-1635.45,0.00021643,2]
[349848220,1737459066576,-500.0,0.00021643,2]
[349848221,1737459066586,-300.0,0.00021643,2]
[349848222,1737459066595,-1109.47,0.00021643,2]
[349848223,1737459066606,-534.9,0.00021643,2]
[349848224,1737459066616,-500.0,0.00021643,2]
[349848225,1737459066626,-1760.33,0.00021643,2]
[349848226,1737459066639,-1889.17,0.00021643,2]
[349848227,1737459066648,-500.0,0.00021643,2]
[349848228,1737459066657,-802.73,0.00021643,2]
[349848229,1737459066667,-571.56,0.00021643,2]
[349848230,1737459066678,-500.0,0.00021643,2]
[349848231,1737459066688,-1328.05,0.00021643,2]
[349848232,1737459066699,-1490.59,0.00021643,2]
[349848233,1737459066709,-500.0,0.00021643,2]
[349848234,1737459066720,-909.06,0.00021643,2]
[349848235,1737459066729,-500.0,0.00021643,2]
[349848236,1737459066740,-818.71,0.00021643,2]
[349848237,1737459066750,-621.54448458,0.00021643,2]
[349848238,1737459066759,-2484.05,0.00021643,2]
[349848239,1737459066769,-500.0,0.00021643,2]
[349848240,1737459066778,-872.4,0.00021643,2]
[349848241,1737459066786,-500.0,0.00021643,2]
[349848242,1737459066796,-513.49,0.00021643,2]
[349848243,1737459066806,-500.0,0.00021643,2]
[349848244,1737459066815,-500.0,0.00021643,2]
[349848245,1737459066825,-2351.36,0.00021643,2]
[349848246,1737459066835,-500.0,0.00021643,2]
[349848247,1737459066845,-500.0,0.00021643,2]
[349848248,1737459066855,-500.0,0.00021643,2]
[349848249,1737459066864,-500.0,0.00021643,2]
[349848250,1737459066874,-638.32,0.00021643,2]
[349848251,1737459066886,-544.04,0.00021643,2]
[349848252,1737459066895,-500.0,0.00021643,2]
[349848253,1737459066905,-623.62,0.00021643,2]
[349848254,1737459066915,-342.45995454,0.00021643,2]
[349848255,1737459066924,-500.0,0.00021643,2]
[349848256,1737459066934,-537.74,0.00021643,2]
[349848257,1737459066944,-500.0,0.00021643,2]
[349848258,1737459066953,-500.0,0.00021643,2]
[349848259,1737459066963,-585.42,0.00021643,2]
[349848260,1737459066972,-500.0,0.00021643,2]
[349848261,1737459066982,-2128.11,0.00021643,2]
[349848262,1737459066991,-150.64022147,0.00021643,2]
[349848263,1737459067001,-765.34,0.00021643,2]
[349848264,1737459067011,-500.0,0.00021643,2]
[349848265,1737459067020,-500.0,0.00021643,2]
[349848266,1737459067029,-500.0,0.00021643,2]
[349848267,1737459067038,-500.0,0.00021643,2]
[349848268,1737459067049,-632.05,0.00021643,2]
[349848269,1737459067058,-500.0,0.00021643,2]
[349848270,1737459067067,-500.0,0.00021643,2]
[349848271,1737459067076,-500.0,0.00021643,2]
[349848272,1737459067085,-1427.89,0.00021643,2]
[349848273,1737459067095,-1787.2,0.00021643,2]
[349848274,1737459067104,-531.87,0.00021643,2]
[349848275,1737459067113,-500.0,0.00021643,2]
[349848276,1737459067122,-393.18,0.00021658,2]
[349848277,1737459067134,-457.43396546,0.00021666,2]
[349848278,1737459067143,-1743.89384904,0.00021666,2]
[349848279,1737459067152,-692.12962963,0.00021671,2]
[349848280,1737459067162,-2110.0,0.00021675,2]
[349848281,1737459067171,-3484.07,0.00021685,7]
[349848282,1737459067180,-3484.07,0.00021685,7]
[349848283,1737459067189,-500.0,0.00021701,2]
[349848284,1737459067199,-200.0,0.00021726,2]
[349848285,1737459067208,-2378.97654496,0.00021726,2]
[349848286,1737459067217,-194.44444442,0.00021726,2]
[349848287,1737459067226,-609.4792092,0.00021727,2]
[349848288,1737459067236,-27958.30828132,0.00021727,2]
[349848289,1737459067246,-14929.58756374,0.00021729,2]
[349848290,1737459067255,-204.10259436,0.00021729,2]
[349848291,1737459067264,-2413.46071559,0.0002173,2]
[349848292,1737459067274,-2378.97654496,0.0002173,2]
[349848293,1737459067283,-742.29324302,0.0002173,2]
[349848294,1737459067292,-1641.79898146,0.00021731,2]
[349848295,1737459067302,-13439.80362151,0.00021731,2]
[349848296,1737459067312,-292.90821946,0.00021731,2]
[349848297,1737459067321,-813.01859384,0.00021732,2]
[349848298,1737459067331,-292.90821946,0.00021732,2]
[349848299,1737459067340,-200.0,0.00021734,2]
[349848300,1737459067350,-29673.40517567,0.00021734,2]
[349848301,1737459067359,-2475.7603354,0.00021734,2]
[349848302,1737459067369,-622.18148127,0.00021736,2]
[349848303,1737459067381,-200.0,0.00021736,2]
[349848304,1737459067391,-35984.37636337,0.00021739,2]
[349848305,1737459067400,-5968.33447234,0.00021739,2]
[349848306,1737459067411,-29673.40517567,0.00021743,2]
[349848307,1737459067423,-1034.95867915,0.00021747,2]
[349848308,1737459067434,-638.89561307,0.00021747,2]
[349848309,1737459067446,-19256.9105072,0.00021749,2]
[349848310,1737459067455,-813.01859384,0.0002175,2]
[349848311,1737459067466,-8097.63570274,0.0002175,2]
[349848312,1737459067476,-29673.40517567,0.00021751,2]
[349848313,1737459067486,-4927.95121886,0.00021752,2]
[349848314,1737459067495,-200.0,0.00021753,2]
[349848315,1737459067505,-2413.46071559,0.00021753,2]
[349848316,1737459067515,-2413.46071559,0.00021753,2]
[349848317,1737459067524,-692.12962963,0.00021753,2]
[349848318,1737459067534,-27958.30828132,0.00021753,2]
[349848319,1737459067544,-204.10259436,0.00021754,2]
[349848320,1737459067554,-3863.73385763,0.00021754,2]
[349848321,1737459067567,-5968.33447234,0.00021754,2]
[349848322,1737459067577,-29793.48859752,0.00021754,2]
[349848323,1737459067586,-11767.13745102,0.00021757,2]
[349848324,1737459067596,-27958.30828132,0.00021758,2]
[349848325,1737459067608,-40860.44923282,0.00021758,2]
[349848326,1737459067617,-3173.91019567,0.0002176,2]
[349848327,1737459067627,-813.01859384,0.0002176,2]
[349848328,1737459067639,-638.89561307,0.0002176,2]
[349848329,1737459067649,-500.0,0.00021761,2]
[349848330,1737459067659,-292.90821946,0.00021761,2]
[349848331,1737459067674,-29793.48859752,0.00021764,2]
[349848332,1737459067685,-3083.82397117,0.00021764,2]
[349848333,1737459067695,-106245.63725991,0.00021765,2]
[349848334,1737459067705,-40860.44923282,0.00021766,2]
[349848335,1737459067718,-622.18148127,0.00021766,2]
[349848336,1737459067735,-200.0,0.00021767,2]
[349848337,1737459067747,-2413.46071559,0.00021767,2]
[349848338,1737459067757,-200.0,0.00021768,2]
[349848339,1737459067767,-1676.59455453,0.00021769,2]
[349848340,1737459067778,-200.0,0.0002177,2]
[349848341,1737459067787,-29793.48859752,0.00021772,2]
[349848342,1737459067798,-11767.13745102,0.00021774,2]
[349848343,1737459067807,-742.29324302,0.00021776,2]
[349848344,1737459067819,-2475.7603354,0.00021776,2]
[349848345,1737459067828,-200.0,0.00021776,2]
[349848346,1737459067838,-3743.321829,0.00021776,2]
[349848347,1737459067848,-40860.44923282,0.00021777,2]
[349848348,1737459067857,-13439.80362151,0.00021777,2]
[349848349,1737459067867,-204.10259436,0.00021777,2]
[349848350,1737459067876,-1641.79898146,0.00021777,2]
[349848351,1737459067888,-638.89561307,0.00021779,2]
[349848352,1737459067897,-3083.82397117,0.00021779,2]
[349848353,1737459067907,-2475.7603354,0.0002178,2]
[349848354,1737459067916,-1676.59455453,0.0002178,2]
[349848355,1737459067925,-1374.58085746,0.00021781,2]
[349848356,1737459067934,-230.3227726,0.00021781,2]
[349848357,1737459067944,-813.01859384,0.00021784,2]
[349848358,1737459067953,-200.0,0.00021786,2]
[349848359,1737459068089,-2378.97654496,0.00021786,2]
[349848360,1737459068099,-921.4559759,0.00021789,2]
[349848361,1737459068108,-622.18148127,0.00021789,2]
[349848362,1737459068118,-200.0,0.0002179,2]
[349848363,1737459068127,-1641.79898146,0.00021792,2]
[349848364,1737459068139,-3083.82397117,0.00021793,2]
[349848365,1737459068149,-13439.80362151,0.00021793,2]
[349848366,1737459068159,-2378.97654496,0.00021794,2]
[349848367,1737459068168,-1374.58085746,0.00021794,2]
[349848368,1737459068178,-2413.46071559,0.00021795,2]
[349848369,1737459068187,-3173.91019567,0.00021795,2]
[349848370,1737459068196,-200.0,0.00021795,2]
[349848371,1737459068205,-3083.82397117,0.00021796,2]
[349848372,1737459068214,-609.4792092,0.00021797,2]
[349848373,1737459068223,-11767.13745102,0.00021798,2]
[349848374,1737459068232,-200.0,0.00021798,2]
[349848375,1737459068241,-200.0,0.000218,2]
[349848376,1737459068251,-1000.0,0.000218,2]
[349848377,1737459068260,-40860.44923282,0.00021802,2]
[349848378,1737459068269,-200.0,0.00021803,2]
[349848379,1737459068279,-5968.33447234,0.00021806,2]
[349848380,1737459068288,-200.0,0.00021806,2]
[349848381,1737459068297,-2151.54387448,0.00021809,2]
[349848382,1737459068307,-3863.73385763,0.00021809,2]
[349848383,1737459068316,-742.29324302,0.0002181,2]
[349848384,1737459068325,-3863.73385763,0.00021811,2]
[349848385,1737459068334,-1034.95867915,0.00021811,2]
[349848386,1737459068345,-3173.91019567,0.00021812,2]
[349848387,1737459068354,-204.10259436,0.00021812,2]
[349848388,1737459068363,-9141.91823355,0.00021812,2]
[349848389,1737459068372,-292.90821946,0.00021813,2]
[349848390,1737459068383,-1641.79898146,0.00021813,2]
[349848391,1737459068392,-1374.58085746,0.00021814,2]
[349848392,1737459068402,-8097.63570274,0.00021814,2]
[349848393,1737459068411,-29673.40517567,0.00021816,2]
[349848394,1737459068420,-1676.59455453,0.00021816,2]
[349848395,1737459068429,-631.48040923,0.00021816,2]
[349848396,1737459068439,-230.3227726,0.00021817,2]
[349848397,1737459068448,-609.4792092,0.00021817,2]
[349848398,1737459068457,-200.0,0.00021817,2]
[349848399,1737459068466,-191.92021466,0.00021817,2]
[349848400,1737459068475,-631.48040923,0.00021818,2]
[349848401,1737459068484,-500.0,0.00021819,2]
[349848402,1737459068493,-631.48040923,0.00021819,2]
[349848403,1737459068503,-609.4792092,0.0002182,2]
[349848404,1737459068512,-200.0,0.00021822,2]
[349848405,1737459068522,-3863.73385763,0.00021826,2]
[349848406,1737459068531,-742.29324302,0.00021826,2]
[349848407,1737459068540,-2378.97654496,0.00021826,2]
[349848408,1737459068550,-27958.30828132,0.00021827,2]
[349848409,1737459068560,-19256.9105072,0.00021827,2]
[349848410,1737459068571,-200.0,0.00021827,2]
[349848411,1737459068582,-4927.95121886,0.00021828,2]
[349848412,1737459068592,-35984.37636337,0.00021829,2]
[349848413,1737459068602,-19256.9105072,0.00021829,2]
[349848414,1737459068611,-432.99263118,0.00021829,2]
[349848415,1737459068621,-638.89561307,0.00021829,2]
[349848416,1737459068631,-29673.40517567,0.00021829,2]
[349848417,1737459068640,-638.89561307,0.0002183,2]
[349848418,1737459068649,-200.0,0.0002183,2]
[349848419,1737459068659,-2475.7603354,0.0002183,2]
[349848420,1737459068669,-1676.59455453,0.0002183,2]
[349848421,1737459068678,-9141.91823355,0.0002183,2]
[349848422,1737459068687,-1034.95867915,0.00021833,2]
[349848423,1737459068696,-11767.13745102,0.00021834,2]
[349848424,1737459068706,-200.0,0.00021834,2]
[349848425,1737459068716,-432.99263118,0.00021835,2]
[349848426,1737459068726,-4927.95121886,0.00021837,2]
[349848427,1737459068735,-432.99263118,0.00021838,2]
[349848428,1737459068744,-8097.63570274,0.0002184,2]
[349848429,1737459068753,-106245.63725991,0.0002184,2]
[349848430,1737459068763,-200.0,0.0002184,2]
[349848431,1737459068772,-200.0,0.00021841,2]
[349848432,1737459068781,-4927.95121886,0.00021842,2]
[349848433,1737459068790,-200.0,0.00021843,2]
[349848434,1737459068800,-14929.58756374,0.00021843,2]
[349848435,1737459068809,-1034.95867915,0.00021845,2]
[349848436,1737459068818,-200.0,0.00021845,2]
[349848437,1737459068827,-1676.59455453,0.00021845,2]
[349848438,1737459068836,-230.3227726,0.00021848,2]
[349848439,1737459068845,-432.99263118,0.00021849,2]
[349848440,1737459068854,-742.29324302,0.00021852,2]
[349848441,1737459068863,-200.0,0.00021852,2]
[349848442,1737459068873,-29793.48859752,0.00021853,2]
[349848443,1737459068886,-622.18148127,0.00021853,2]
[349848444,1737459068895,-4927.95121886,0.00021853,2]
[349848445,1737459068904,-292.90821946,0.00021854,2]
[349848446,1737459068913,-2151.54387448,0.00021854,2]
[349848447,1737459068927,-3743.321829,0.00021855,2]
[349848448,1737459068936,-2475.7603354,0.00021855,2]
[349848449,1737459068945,-230.3227726,0.00021855,2]
[349848450,1737459068955,-200.0,0.00021855,2]
[349848451,1737459068964,-27958.30828132,0.00021857,2]
[349848452,1737459068973,-200.0,0.00021858,2]
[349848453,1737459068982,-191.92021466,0.00021859,2]
[349848454,1737459068991,-35984.37636337,0.0002186,2]
[349848455,1737459069005,-14929.58756374,0.00021861,2]
[349848456,1737459069014,-200.0,0.00021861,2]
[349848457,1737459069024,-29793.48859752,0.00021861,2]
[349848458,1737459069033,-631.48040923,0.00021862,2]
[349848459,1737459069042,-200.0,0.00021863,2]
[349848460,1737459069052,-692.12962963,0.00021863,2]
[349848461,1737459069062,-194.44444445,0.00021863,2]
[349848462,1737459069071,-194.44444445,0.00021863,2]
[349848463,1737459069080,-194.44444445,0.00021863,2]
[349848464,1737459069090,-194.44444445,0.00021863,2]
[349848465,1737459069100,-5968.33447234,0.00021863,2]
[349848466,1737459069109,-106245.63725991,0.00021864,2]
[349848467,1737459069118,-35984.37636337,0.00021866,2]
[349848468,1737459069127,-200.0,0.00021866,2]
[349848469,1737459069139,-3743.321829,0.00021867,2]
[349848470,1737459069149,-2151.54387448,0.00021867,2]
[349848471,1737459069158,-19256.9105072,0.00021868,2]
[349848472,1737459069168,-200.0,0.0002187,2]
[349848473,1737459069178,-3173.91019567,0.00021871,2]
[349848474,1737459069187,-9141.91823355,0.00021872,2]
[349848475,1737459069196,-11767.13745102,0.00021873,2]
[349848476,1737459069206,-1484.58648604,0.00021874,2]
[349848477,1737459069216,-14929.58756374,0.00021874,2]
[349848478,1737459069225,-106245.63725991,0.00021874,2]
[349848479,1737459069235,-3173.91019567,0.00021875,2]
[349848480,1737459069244,-1484.58648604,0.00021878,2]
[349848481,1737459069253,-432.99263118,0.0002188,2]
[349848482,1737459069263,-1374.58085746,0.0002188,2]
[349848483,1737459069272,-13439.80362151,0.00021881,2]
[349848484,1737459069281,-1374.58085746,0.00021881,2]
[349848485,1737459069291,-35984.37636337,0.00021881,2]